fUSD/lending_fUSD_20260526
["ID","MTS","AMOUNT","RATE_DAILY","PERIOD"]
[423027952,1779772232000,-500.0,0.00016211,2]
[423027958,1779772232000,-500.0,0.00016211,2]
[423027951,1779772232000,-500.0,0.00016211,2]
[423027965,1779772232000,-2916.91081456,0.00016212,2]
[423027961,1779772232000,-41149.97498726,0.00016212,2]
[423027957,1779772232000,-500.0,0.00016211,2]
[423027960,1779772232000,-51053.6875476,0.00016212,2]
[423027959,1779772232000,-500.0,0.00016211,2]
[423027956,1779772232000,-500.0,0.00016211,2]
[423027979,1779772238000,-39591.51919348,0.00016212,2]
[423027984,1779772238000,-9634.52629948,0.00016212,2]
[423027982,1779772238000,-4730.75089867,0.00016212,2]
[423027985,1779772238000,-516.70824417,0.00016212,2]
[423027986,1779772238000,-545.85460464,0.00016212,2]
[423027983,1779772238000,-761.20719197,0.00016212,2]
[423027981,1779772238000,-5945.36086352,0.00016212,2]
[423027978,1779772238000,-4143.25905905,0.00016212,2]
[423027980,1779772238000,-1466.25518156,0.00016212,2]
[423027987,1779772239000,-870.1770864,0.00016212,2]
[423027988,1779772239000,-2135.74992329,0.00016212,2]
[423027997,1779772242000,-366.07666003,0.00016212,2]
[423027998,1779772242000,-7685.43891309,0.00016212,2]
[423027996,1779772242000,-1068.32136773,0.00016212,2]
[423027995,1779772242000,-182.11298935,0.00016212,2]
[423027994,1779772242000,-150.0,0.00016112,2]
[423028010,1779772243000,-1279.53413149,0.00016212,2]
[423028001,1779772243000,-2000.0,0.00016212,2]
[423028000,1779772243000,-28240.70682928,0.00016212,2]
[423028012,1779772244000,-1320.0,0.00016212,2]
[423028013,1779772244000,-10337.22398982,0.00016212,2]
[423028011,1779772244000,-883.15095705,0.00016212,2]
[423028022,1779772246000,-666.0,0.00016212,2]
[423028025,1779772247000,-265.59999999,0.00016212,2]
[423028024,1779772247000,-658.03402278,0.00016212,2]
[423028023,1779772247000,-1131.37,0.00016212,2]
[423028030,1779772258000,169.08,9.225e-05,2]
[423028037,1779773178000,154.849205,0.00010196,2]
[423028042,1779773196000,-69.86086108,0.000103,2]
[423028041,1779773196000,-279.13673783,0.00010248,2]
[423028058,1779773340000,1000.0,0.00028077,120]
[423028069,1779773431000,-300.0,0.00010699,2]
[423028063,1779773431000,-839.71306629,0.000103,2]
[423028065,1779773431000,-163.5,0.00010599,2]
[423028066,1779773431000,-1200.0,0.00010698,2]
[423028067,1779773431000,-1200.0,0.00010698,2]
[423028072,1779773431000,-356.44950306,0.000107,2]
[423028071,1779773431000,-31919.96189567,0.000107,2]
[423028068,1779773431000,-300.0,0.00010699,2]
[423028070,1779773431000,-74766.10091681,0.000107,2]
[423028064,1779773431000,-197.63661849,0.00010599,2]
[423028073,1779773431000,-643.82857995,0.000107,2]
[423028078,1779773431000,-444.0,0.000107,2]
[423028074,1779773431000,-720.22605909,0.000107,2]
[423028079,1779773431000,-1507.28120465,0.000107,2]
[423028077,1779773431000,-764.04635496,0.000107,2]
[423028083,1779773431000,-1680.0,0.00011768,2]
[423028076,1779773431000,-735.95364504,0.000107,2]
[423028081,1779773431000,-273.0,0.0001176,2]
[423028080,1779773431000,-9560.25855226,0.000107,2]
[423028082,1779773431000,-365.0,0.00011761,2]
[423028085,1779773431000,-985.60795594,0.00015212,2]
[423028084,1779773431000,-5327.73419857,0.00015152,2]
[423028075,1779773431000,-2060.33272966,0.000107,2]
[423028128,1779773437000,-594.79067577,0.00015212,2]
[423028129,1779773437000,-352.83136829,0.00015212,2]
[423028132,1779773437000,-618.6790189,0.00015271,2]
[423028130,1779773437000,-143.36153485,0.00015271,2]
[423028131,1779773437000,-983.744131,0.00015271,2]
[423028138,1779773438000,-194.4575361,0.00015357,2]
[423028134,1779773438000,-418.98263072,0.00015271,2]
[423028133,1779773438000,-1158.67285135,0.00015271,2]
[423028135,1779773438000,-2093.68970089,0.00015271,2]
[423028136,1779773438000,-413.32766839,0.00015271,2]
[423028139,1779773438000,-2896.7124639,0.00015357,2]
[423028141,1779773438000,-249.7028356,0.00015441,2]
[423028146,1779773438000,-2175.02346237,0.00016011,2]
[423028137,1779773438000,-253.5424639,0.00015271,2]
[423028144,1779773438000,-128.16055737,0.0001567,2]
[423028140,1779773438000,-190.3153135,0.00015441,2]
[423028143,1779773438000,-170.37,0.00015446,2]
[423028147,1779773438000,-1357.85775395,0.00016012,2]
[423028145,1779773438000,-21.83944263,0.0001567,2]
[423028148,1779773438000,-14078.95110786,0.00016012,2]
[423028142,1779773438000,-257.26958819,0.00015441,2]
[423028168,1779773439000,-1393.8470131,0.00016012,2]
[423028186,1779773440000,-500.0,0.00016111,2]
[423028193,1779773440000,-500.0,0.00016111,2]
[423028205,1779773440000,-500.0,0.00016111,2]
[423028206,1779773440000,-500.0,0.00016111,2]
[423028196,1779773440000,-500.0,0.00016111,2]
[423028195,1779773440000,-316.61987864,0.00016111,2]
[423028194,1779773440000,-500.0,0.00016111,2]
[423028201,1779773440000,-500.0,0.00016111,2]
[423028197,1779773440000,-500.0,0.00016111,2]
[423028184,1779773440000,-500.0,0.00016111,2]
[423028202,1779773440000,-500.0,0.00016111,2]
[423028200,1779773440000,-500.0,0.00016111,2]
[423028204,1779773440000,-500.0,0.00016111,2]
[423028203,1779773440000,-500.0,0.00016111,2]
[423028199,1779773440000,-500.0,0.00016111,2]
[423028207,1779773440000,-500.0,0.00016111,2]
[423028198,1779773440000,-500.0,0.00016111,2]
[423028187,1779773440000,-500.0,0.00016111,2]
[423028191,1779773440000,-500.0,0.00016111,2]
[423028192,1779773440000,-500.0,0.00016111,2]
[423028208,1779773440000,-500.0,0.00016111,2]
[423028170,1779773440000,-191.88921387,0.00016012,2]
[423028169,1779773440000,-369.34072509,0.00016012,2]
[423028172,1779773440000,-308.84622186,0.0001605,2]
[423028171,1779773440000,-308.11078613,0.00016012,2]
[423028174,1779773440000,-150.0,0.00016111,2]
[423028173,1779773440000,-3127.7431882,0.0001605,2]
[423028185,1779773440000,-500.0,0.00016111,2]
[423028176,1779773440000,-500.0,0.00016111,2]
[423028177,1779773440000,-500.0,0.00016111,2]
[423028179,1779773440000,-500.0,0.00016111,2]
[423028178,1779773440000,-500.0,0.00016111,2]
[423028181,1779773440000,-500.0,0.00016111,2]
[423028188,1779773440000,-500.0,0.00016111,2]
[423028183,1779773440000,-500.0,0.00016111,2]
[423028190,1779773440000,-500.0,0.00016111,2]
[423028175,1779773440000,-150.0,0.00016111,2]
[423028209,1779773440000,-500.0,0.00016111,2]
[423028232,1779773440000,-500.0,0.00016111,2]
[423028210,1779773440000,-500.0,0.00016111,2]
[423028234,1779773440000,-600.0,0.00016111,2]
[423028236,1779773440000,-500.0,0.00016111,2]
[423028235,1779773440000,-500.0,0.00016111,2]
[423028241,1779773440000,-500.0,0.00016111,2]
[423028238,1779773440000,-500.0,0.00016111,2]
[423028239,1779773440000,-500.0,0.00016111,2]
[423028240,1779773440000,-500.0,0.00016111,2]
[423028231,1779773440000,-500.0,0.00016111,2]
[423028214,1779773440000,-500.0,0.00016111,2]
[423028242,1779773440000,-500.0,0.00016111,2]
[423028243,1779773440000,-500.0,0.00016111,2]
[423028233,1779773440000,-500.0,0.00016111,2]
[423028245,1779773440000,-500.0,0.00016111,2]
[423028246,1779773440000,-500.0,0.00016111,2]
[423028248,1779773440000,-151.0,0.00016112,2]
[423028247,1779773440000,-500.0,0.00016111,2]
[423028244,1779773440000,-500.0,0.00016111,2]
[423028228,1779773440000,-500.0,0.00016111,2]
[423028237,1779773440000,-500.0,0.00016111,2]
[423028221,1779773440000,-500.0,0.00016111,2]
[423028227,1779773440000,-500.0,0.00016111,2]
[423028211,1779773440000,-500.0,0.00016111,2]
[423028212,1779773440000,-500.0,0.00016111,2]
[423028213,1779773440000,-500.0,0.00016111,2]
[423028217,1779773440000,-500.0,0.00016111,2]
[423028216,1779773440000,-500.0,0.00016111,2]
[423028218,1779773440000,-500.0,0.00016111,2]
[423028219,1779773440000,-500.0,0.00016111,2]
[423028215,1779773440000,-500.0,0.00016111,2]
[423028222,1779773440000,-500.0,0.00016111,2]
[423028220,1779773440000,-235.920333,0.00016111,2]
[423028230,1779773440000,-500.0,0.00016111,2]
[423028229,1779773440000,-500.0,0.00016111,2]
[423028226,1779773440000,-500.0,0.00016111,2]
[423028225,1779773440000,-500.0,0.00016111,2]
[423028223,1779773440000,-500.0,0.00016111,2]
[423028224,1779773440000,-500.0,0.00016111,2]
[423028259,1779773441000,-957.18712471,0.00016438,2]
[423028267,1779773441000,-1216.64633071,0.000171,2]
[423028266,1779773441000,-170.37,0.00017072,2]
[423028265,1779773441000,-502.36932317,0.00017028,2]
[423028264,1779773441000,-514.2,0.00016797,2]
[423028263,1779773441000,-167.72,0.00016712,2]
[423028262,1779773441000,-151.0,0.00016438,2]
[423028272,1779773441000,-514.2,0.00017217,2]
[423028260,1779773441000,-151.0,0.00016438,2]
[423028250,1779773441000,-151.0,0.00016141,2]
[423028258,1779773441000,-917.11287529,0.00016438,2]
[423028256,1779773441000,-500.0,0.00016211,2]
[423028255,1779773441000,-500.0,0.00016211,2]
[423028254,1779773441000,-588.53920696,0.00016211,2]
[423028252,1779773441000,-9153.1047871,0.00016156,2]
[423028253,1779773441000,-667.5908533,0.00016156,2]
[423028249,1779773441000,-17599.4547256,0.00016141,2]
[423028251,1779773441000,-174.4291325,0.00016156,2]
[423028257,1779773441000,-339.87522373,0.00016438,2]
[423028270,1779773441000,-2019.3370577,0.0001719,2]
[423028261,1779773441000,-151.0,0.00016438,2]
[423028269,1779773441000,-218.0,0.00017148,2]
[423028290,1779773441000,-305.91884413,0.0001792,2]
[423028287,1779773441000,-525.0,0.0001792,2]
[423028289,1779773441000,-1225.0,0.0001792,2]
[423028288,1779773441000,-1272.0,0.0001792,2]
[423028285,1779773441000,-1216.64633071,0.000178,2]
[423028286,1779773441000,-170.45,0.00017873,2]
[423028282,1779773441000,-200.0,0.00017733,2]
[423028284,1779773441000,-200.0,0.0001778,2]
[423028283,1779773441000,-249.7028356,0.00017757,2]
[423028280,1779773441000,-150.0,0.00017701,2]
[423028279,1779773441000,-810.51,0.00017645,2]
[423028281,1779773441000,-592.94,0.00017733,2]
[423028278,1779773441000,-514.2,0.00017637,2]
[423028276,1779773441000,-1216.64633071,0.000176,2]
[423028277,1779773441000,-161.72,0.00017615,2]
[423028274,1779773441000,-167.7,0.00017301,2]
[423028271,1779773441000,-1216.64633071,0.000172,2]
[423028273,1779773441000,-153.0,0.0001726,2]
[423028268,1779773441000,-1933.23,0.00017113,2]
[423028275,1779773441000,-1216.64633071,0.000174,2]
[423028294,1779773442000,-375.18789012,0.0001792,2]
[423028295,1779773442000,-246.89326575,0.0001792,2]
[423028296,1779773442000,-256.10673425,0.0001792,2]
[423028324,1779773443000,-1703.77973206,0.0001841,2]
[423028298,1779773443000,-707.48499536,0.0001792,2]
[423028300,1779773443000,-2640.5880101,0.0001792,2]
[423028299,1779773443000,-713.11239565,0.0001792,2]
[423028301,1779773443000,-151.0,0.0001792,2]
[423028304,1779773443000,-151.0,0.0001792,2]
[423028303,1779773443000,-151.0,0.0001792,2]
[423028306,1779773443000,-350.0,0.00018,2]
[423028302,1779773443000,-151.0,0.0001792,2]
[423028305,1779773443000,-153.0,0.00017945,2]
[423028307,1779773443000,-185.56715712,0.00018,2]
[423028309,1779773443000,-259.6092417,0.00018,2]
[423028297,1779773443000,-1744.70786464,0.0001792,2]
[423028320,1779773443000,-0.46538952,0.000182,2]
[423028321,1779773443000,-2175.02346236,0.00018288,2]
[423028308,1779773443000,-188.00981057,0.00018,2]
[423028315,1779773443000,-398.88842183,0.00018057,2]
[423028312,1779773443000,-172.6,0.00018016,2]
[423028310,1779773443000,-500.0,0.00018016,2]
[423028314,1779773443000,-115.31157817,0.00018057,2]
[423028317,1779773443000,-185.56715712,0.000182,2]
[423028318,1779773443000,-187.54442105,0.000182,2]
[423028323,1779773443000,-188.00981057,0.000184,2]
[423028316,1779773443000,-218.0,0.00018148,2]
[423028322,1779773443000,-185.56715712,0.000184,2]
[423028332,1779773445000,-458.38907396,0.00018001,2]
[423028331,1779773445000,-599.87964055,0.00018001,2]
[423028334,1779773445000,-170.52026794,0.0001841,2]
[423028333,1779773445000,-2635.89728549,0.00018001,2]
[423028335,1779773445000,-514.2,0.00018477,2]
[423028336,1779773445000,-185.56715712,0.000185,2]
[423028339,1779773445000,-1008.91901951,0.0001872,2]
[423028338,1779773445000,-818.61,0.0001872,2]
[423028337,1779773445000,-188.00981057,0.000185,2]
[423028353,1779773446000,-151.0,0.00019178,2]
[423028345,1779773446000,-215.42269777,0.00018988,2]
[423028346,1779773446000,-1933.23,0.00019015,2]
[423028352,1779773446000,-218.0,0.00019148,2]
[423028348,1779773446000,-150.058,0.00019038,2]
[423028344,1779773446000,-151.0,0.00018963,2]
[423028347,1779773446000,-150.0,0.00019038,2]
[423028341,1779773446000,-1341.99675222,0.0001872,2]
[423028342,1779773446000,-7056.54086364,0.0001872,2]
[423028340,1779773446000,-717.48336463,0.0001872,2]
[423028351,1779773446000,-700.57,0.00019071,2]
[423028343,1779773446000,-1216.39,0.0001872,2]
[423028349,1779773446000,-150.0,0.00019038,2]
[423028355,1779773446000,-151.0,0.00019178,2]
[423028365,1779773446000,-151.0,0.0001965,2]
[423028364,1779773446000,-151.0,0.0001965,2]
[423028360,1779773446000,-151.0,0.0001965,2]
[423028361,1779773446000,-329.28811059,0.0001965,2]
[423028362,1779773446000,-170.71188941,0.0001965,2]
[423028363,1779773446000,-151.0,0.0001965,2]
[423028358,1779773446000,-151.0,0.00019384,2]
[423028356,1779773446000,-20422.17,0.00019178,2]
[423028357,1779773446000,-161.72,0.00019376,2]
[423028354,1779773446000,-151.0,0.00019178,2]
[423028366,1779773446000,-141.06811059,0.0001965,2]
[423028359,1779773446000,-200.0,0.0001965,2]
[423028350,1779773446000,-195.47,0.00019038,2]
[423028402,1779774540000,1000.0,0.00028076,120]
[423028408,1779774631000,-163.4,0.00016,2]
[423028407,1779774631000,-300.0,0.00016,2]
[423028405,1779774631000,-250.0,0.00014,2]
[423028409,1779774631000,-152.49798757,0.00016011,2]
[423028406,1779774631000,-166.66,0.00015841,2]
[423028410,1779774631000,-500.0,0.00016111,2]
[423028412,1779774631000,-500.0,0.00016111,2]
[423028416,1779774631000,-1743.3,0.00016438,2]
[423028411,1779774631000,-500.0,0.00016111,2]
[423028413,1779774631000,-500.0,0.00016111,2]
[423028415,1779774631000,-536.73,0.00016338,2]
[423028414,1779774631000,-300.0,0.00016337,2]
[423028417,1779774631000,-215.42269777,0.00016464,2]
[423028432,1779774632000,-250.33565106,0.00017459,2]
[423028430,1779774632000,-154.78,0.00017268,2]
[423028428,1779774632000,-2593.75430486,0.000172,2]
[423028427,1779774632000,-500.0,0.00017113,2]
[423028425,1779774632000,-500.0,0.00017113,2]
[423028423,1779774632000,-897.57,0.0001685,2]
[423028418,1779774632000,-151.8,0.00016526,2]
[423028424,1779774632000,-152.49798757,0.00017056,2]
[423028422,1779774632000,-367.97,0.00016778,2]
[423028420,1779774632000,-2531.65,0.00016698,2]
[423028421,1779774632000,-168.07,0.00016712,2]
[423028419,1779774632000,-348.994518,0.00016628,2]
[423028431,1779774632000,-2593.75430486,0.000174,2]
[423028426,1779774632000,-500.0,0.00017113,2]
[423028434,1779774632000,-200.0,0.00017501,2]
[423028437,1779774632000,-335.0,0.00017856,2]
[423028433,1779774632000,-2593.75430486,0.000175,2]
[423028429,1779774632000,-296.47,0.00017204,2]
[423028442,1779774632000,-601.63139384,0.00018,2]
[423028445,1779774632000,-108451.86987755,0.000181,2]
[423028443,1779774632000,-350.0,0.00018,2]
[423028446,1779774632000,-29769.35352765,0.000181,2]
[423028447,1779774632000,-5117.9774366,0.000181,2]
[423028444,1779774632000,-2593.75430486,0.000181,2]
[423028441,1779774632000,-593.81490276,0.00018,2]
[423028439,1779774632000,-500.0,0.00017983,2]
[423028448,1779774632000,-700.05,0.000181,2]
[423028438,1779774632000,-2593.75430486,0.000179,2]
[423028435,1779774632000,-2593.75430486,0.000177,2]
[423028436,1779774632000,-500.0,0.00017853,2]
[423028440,1779774632000,-500.0,0.00017983,2]
[423028461,1779774637000,-1074.7942582,0.000181,2]
[423028462,1779774637000,-152.49798757,0.000181,2]
[423028463,1779774637000,-593.81490276,0.000182,2]
[423028465,1779774637000,-601.63139384,0.000182,2]
[423028464,1779774637000,-2593.75430486,0.000182,2]
[423028480,1779774638000,-2593.75430486,0.000184,2]
[423028497,1779774638000,-999.4393618,0.00018789,2]
[423028498,1779774638000,-1120.29492528,0.00018789,2]
[423028488,1779774638000,-449.42469043,0.00018523,2]
[423028486,1779774638000,-411.86674102,0.000185,2]
[423028485,1779774638000,-324.26183567,0.000185,2]
[423028487,1779774638000,-189.76465282,0.000185,2]
[423028484,1779774638000,-269.55306709,0.000185,2]
[423028482,1779774638000,-4.57403513,0.000184,2]
[423028483,1779774638000,-1743.3,0.0001841,2]
[423028479,1779774638000,-593.81490276,0.000184,2]
[423028476,1779774638000,-150.0,0.00018365,2]
[423028470,1779774638000,-626.0,0.00018365,2]
[423028481,1779774638000,-597.05735871,0.000184,2]
[423028477,1779774638000,-4577.7,0.00018365,2]
[423028471,1779774638000,-3547.0,0.00018365,2]
[423028474,1779774638000,-1272.0,0.00018365,2]
[423028472,1779774638000,-928.0,0.00018365,2]
[423028475,1779774638000,-1225.0,0.00018365,2]
[423028473,1779774638000,-525.0,0.00018365,2]
[423028489,1779774638000,-2593.75430486,0.000186,2]
[423028468,1779774638000,-169.39,0.00018257,2]
[423028466,1779774638000,-169.39,0.00018257,2]
[423028469,1779774638000,-2500.0,0.000183,2]
[423028467,1779774638000,-169.39,0.00018257,2]
[423028478,1779774638000,-3636.0,0.00018365,2]
[423028490,1779774638000,-593.81490276,0.000187,2]
[423028499,1779774638000,-1377.74506552,0.00018789,2]
[423028492,1779774638000,-500.0,0.00018788,2]
[423028520,1779774638000,-307.0,0.00018796,2]
[423028519,1779774638000,-70.85601696,0.00018796,2]
[423028517,1779774638000,-97.75655555,0.00018796,2]
[423028518,1779774638000,-500.0,0.00018796,2]
[423028515,1779774638000,-500.0,0.00018796,2]
[423028516,1779774638000,-402.24344445,0.00018796,2]
[423028511,1779774638000,-500.0,0.00018796,2]
[423028513,1779774638000,-500.0,0.00018796,2]
[423028514,1779774638000,-500.0,0.00018796,2]
[423028512,1779774638000,-500.0,0.00018796,2]
[423028494,1779774638000,-174.4291326,0.00018789,2]
[423028508,1779774638000,-500.0,0.00018796,2]
[423028510,1779774638000,-500.0,0.00018796,2]
[423028505,1779774638000,-500.0,0.00018796,2]
[423028495,1779774638000,-661.7857878,0.00018789,2]
[423028493,1779774638000,-6710.1904608,0.00018789,2]
[423028496,1779774638000,-23879.470387,0.00018789,2]
[423028504,1779774638000,-500.0,0.00018796,2]
[423028500,1779774638000,-500.0,0.00018796,2]
[423028491,1779774638000,-601.63139384,0.000187,2]
[423028502,1779774638000,-500.0,0.00018796,2]
[423028503,1779774638000,-500.0,0.00018796,2]
[423028507,1779774638000,-500.0,0.00018796,2]
[423028506,1779774638000,-500.0,0.00018796,2]
[423028509,1779774638000,-500.0,0.00018796,2]
[423028501,1779774638000,-424.06887541,0.00018796,2]
[423028532,1779774640000,-500.0,0.00018796,2]
[423028527,1779774640000,-500.0,0.00018796,2]
[423028526,1779774640000,-122.14398304,0.00018796,2]
[423028531,1779774640000,-395.86911293,0.00018796,2]
[423028529,1779774640000,-500.0,0.00018796,2]
[423028533,1779774640000,-500.0,0.00018796,2]
[423028536,1779774640000,-470.92759482,0.00018796,2]
[423028530,1779774640000,-104.13088707,0.00018796,2]
[423028534,1779774640000,-500.0,0.00018796,2]
[423028535,1779774640000,-29.07240518,0.00018796,2]
[423028537,1779774640000,-75.2174156,0.00018796,2]
[423028528,1779774640000,-500.0,0.00018796,2]
[423028561,1779774643000,-225.2174156,0.00018796,2]
[423028560,1779774643000,-500.0,0.00018796,2]
[423028559,1779774643000,-500.0,0.00018796,2]
[423028558,1779774643000,-424.7825844,0.00018796,2]
[423028581,1779774646000,-500.0,0.00018796,2]
[423028577,1779774646000,-500.0,0.00018796,2]
[423028575,1779774646000,-500.0,0.00018796,2]
[423028579,1779774646000,-201.20690461,0.00018796,2]
[423028578,1779774646000,-500.0,0.00018796,2]
[423028574,1779774646000,-274.7825844,0.00018796,2]
[423028573,1779774646000,-418.0,0.00018365,2]
[423028585,1779774646000,-500.0,0.00018796,2]
[423028576,1779774646000,-500.0,0.00018796,2]
[423028580,1779774646000,-298.79309539,0.00018796,2]
[423028587,1779774646000,-151.0,0.00018797,2]
[423028582,1779774646000,-500.0,0.00018796,2]
[423028584,1779774646000,-500.0,0.00018796,2]
[423028586,1779774646000,-500.0,0.00018796,2]
[423028588,1779774646000,-2593.75430486,0.000188,2]
[423028589,1779774646000,-897.57,0.00018956,2]
[423028593,1779774646000,-200.0,0.0001965,2]
[423028592,1779774646000,-201.730421,0.00019178,2]
[423028594,1779774646000,-200.0,0.0001965,2]
[423028590,1779774646000,-154.78,0.00018995,2]
[423028595,1779774646000,-12494.40539957,0.000199,2]
[423028583,1779774646000,-628.53112097,0.00018796,2]
[423028596,1779774843000,163.88,0.00010103,2]
[423028618,1779775741000,1000.0,0.00028075,120]
[423028624,1779775831000,-163.88,0.00011786,2]
[423028626,1779775831000,-164.61595895,0.00014,2]
[423028625,1779775831000,-163.88,0.0001347,2]
[423028629,1779775831000,-271.2824293,0.00015569,2]
[423028627,1779775831000,-85.38404105,0.00014,2]
[423028628,1779775831000,-163.88,0.00015154,2]
[423028660,1779775832000,-500.0,0.00018192,2]
[423028645,1779775832000,-195.32,0.00017684,2]
[423028650,1779775832000,-550.0,0.00017899,2]
[423028651,1779775832000,-260.6285594,0.000179,2]
[423028648,1779775832000,-300.0,0.00017898,2]
[423028652,1779775832000,-58414.9537893,0.000179,2]
[423028653,1779775832000,-4311.6784107,0.000179,2]
[423028657,1779775832000,-379.04511694,0.00018,2]
[423028659,1779775832000,-6503.42,0.00018064,2]
[423028646,1779775832000,-260.6285594,0.000177,2]
[423028656,1779775832000,-200.21654701,0.00018,2]
[423028664,1779775832000,-150.0,0.0001839,2]
[423028663,1779775832000,-379.04511694,0.000182,2]
[423028662,1779775832000,-200.21654701,0.000182,2]
[423028655,1779775832000,-260.6285594,0.00018,2]
[423028649,1779775832000,-300.0,0.00017898,2]
[423028658,1779775832000,-350.0,0.00018,2]
[423028643,1779775832000,-166.66,0.0001763,2]
[423028678,1779775832000,-1194.96124547,0.0001839,2]
[423028631,1779775832000,-177.15776951,0.00016346,2]
[423028642,1779775832000,-156.68,0.00017604,2]
[423028641,1779775832000,-853.79,0.00017538,2]
[423028630,1779775832000,-300.0,0.00016,2]
[423028632,1779775832000,-1685.9,0.00016438,2]
[423028635,1779775832000,-168.07,0.00016712,2]
[423028637,1779775832000,-177.1577695,0.00017123,2]
[423028633,1779775832000,-208.92835186,0.0001645,2]
[423028636,1779775832000,-163.88,0.00016838,2]
[423028638,1779775832000,-260.6285594,0.000173,2]
[423028634,1779775832000,-215.42269777,0.00016463,2]
[423028639,1779775832000,-260.6285594,0.000175,2]
[423028640,1779775832000,-716.62,0.00017515,2]
[423028644,1779775832000,-500.0,0.00017658,2]
[423028647,1779775832000,-1200.0,0.00017897,2]
[423028672,1779775832000,-526.80904725,0.0001839,2]
[423028654,1779775832000,-177.1577695,0.000179,2]
[423028666,1779775832000,-2944.06984195,0.0001839,2]
[423028698,1779775832000,-501.31424518,0.00018788,2]
[423028705,1779775832000,-401.51746418,0.0001895,2]
[423028699,1779775832000,-500.0,0.00018788,2]
[423028706,1779775832000,-829.98709775,0.0001895,2]
[423028697,1779775832000,-500.0,0.00018788,2]
[423028700,1779775832000,-413.83284248,0.00018796,2]
[423028704,1779775832000,-530.18626497,0.00018925,2]
[423028701,1779775832000,-86.16715752,0.00018796,2]
[423028702,1779775832000,-184.37519565,0.00018796,2]
[423028707,1779775832000,-1263.52532736,0.0001895,2]
[423028708,1779775832000,-4425.40727521,0.0001895,2]
[423028711,1779775832000,-3827.31878062,0.0001895,2]
[423028709,1779775832000,-1281.47839901,0.0001895,2]
[423028710,1779775832000,-1769.08724703,0.0001895,2]
[423028665,1779775832000,-1355.0,0.0001839,2]
[423028695,1779775832000,-500.0,0.00018701,2]
[423028693,1779775832000,-200.21654701,0.000187,2]
[423028703,1779775832000,-57.52772115,0.00018925,2]
[423028696,1779775832000,-500.0,0.00018788,2]
[423028667,1779775832000,-315.87235649,0.0001839,2]
[423028694,1779775832000,-379.04511694,0.000187,2]
[423028670,1779775832000,-452.27361451,0.0001839,2]
[423028676,1779775832000,-1225.0,0.0001839,2]
[423028669,1779775832000,-626.0,0.0001839,2]
[423028712,1779775832000,-575.75,0.0001895,2]
[423028668,1779775832000,-287.05780156,0.0001839,2]
[423028671,1779775832000,-292.91733824,0.0001839,2]
[423028674,1779775832000,-525.0,0.0001839,2]
[423028688,1779775832000,-379.04511694,0.000184,2]
[423028690,1779775832000,-200.21654701,0.000185,2]
[423028686,1779775832000,-200.21654701,0.000184,2]
[423028681,1779775832000,-1085.39999998,0.0001839,2]
[423028689,1779775832000,-1685.9,0.0001841,2]
[423028692,1779775832000,-163.88,0.00018521,2]
[423028684,1779775832000,-1355.63875455,0.0001839,2]
[423028691,1779775832000,-379.04511694,0.000185,2]
[423028737,1779775838000,-217.48772699,0.0001992,2]
[423028726,1779775838000,-2000.0,0.000199,2]
[423028723,1779775838000,-716.62,0.00019704,2]
[423028728,1779775838000,-2000.0,0.0001991,2]
[423028733,1779775838000,-2451.014376,0.0001992,2]
[423028735,1779775838000,-151.0,0.0001992,2]
[423028729,1779775838000,-151.0,0.0001991,2]
[423028724,1779775838000,-2867.12046938,0.0001981,2]